fUSD/lending_fUSD_20260207
["ID","MTS","AMOUNT","RATE_DAILY","PERIOD"]
[404724338,1770492643254,-500.0,0.00019836,2]
[404724339,1770492643264,-500.7490249,0.0001989,2]
[404724340,1770492643274,-400.0,0.0001997,2]
[404724341,1770492643284,-400.0,0.0001997,2]
[404724342,1770492643294,-550.0,0.0001997,2]
[404724343,1770492643304,-20000.0,0.0001997,2]
[404724344,1770492643313,-1469.32316731,0.0002,5]
[404724345,1770492643323,-272.3259299,0.0002,20]
[404724346,1770492643332,-2941.52846044,0.0002,7]
[404724347,1770492643342,-529.97285625,0.0002,7]
[404724348,1770492643352,-2618.58359404,0.0002,7]
[404724349,1770492643361,-1000.0,0.0002,7]
[404724350,1770492643372,-1512.32507296,0.00020285,2]
[404724351,1770492643384,-565.66,0.00020319,2]
[404724352,1770492643394,-160.0,0.0002062,2]
[404724353,1770492643403,-340.754606,0.00020821,7]
[404724354,1770492643413,-400.0,0.0002087,2]
[404724355,1770492643422,-400.0,0.0002087,2]
[404724356,1770492643433,-150.0,0.000209,7]
[404724357,1770492643442,-160.0,0.00021,7]
[404724358,1770492643452,-500.0,0.00021424,2]
[404724359,1770492643461,-1512.32507296,0.00021783,2]
[404724360,1770492643471,-2023.30573995,0.00021917,2]
[404724361,1770492643481,-500.0,0.00021918,2]
[404724362,1770492643490,-500.0,0.00021973,2]
[404724364,1770492643500,-3558.43,0.00022,7]
[404724365,1770492643510,-799.93171184,0.00022,7]
[404724366,1770492643519,-16293.07,0.00022,2]
[404724367,1770492643529,-500.0,0.00022028,2]
[404724368,1770492643539,-500.0,0.00022082,2]
[404724369,1770492643549,-500.0,0.00022137,2]
[404724370,1770492643559,-500.0,0.00022192,2]
[404724371,1770492643569,-359.9595705,0.00022247,2]
[404724373,1770492643579,-5000.0,0.00022309,2]
[404724374,1770492643589,-500.0,0.0002246,2]
[404724375,1770492643598,-500.0,0.0002246,2]
[404724376,1770492643607,-387.32253792,0.0002246,2]
[404724377,1770492643617,-500.0,0.0002246,2]
[404724378,1770492643626,-500.0,0.0002246,2]
[404724379,1770492643635,-500.0,0.0002246,2]
[404724380,1770492643645,-500.0,0.0002246,2]
[404724381,1770492643654,-500.0,0.0002246,2]
[404724382,1770492643664,-500.0,0.0002246,2]
[404724383,1770492643673,-500.0,0.0002246,2]
[404724384,1770492643682,-511.65883454,0.0002246,2]
[404724385,1770492643692,-500.0,0.0002246,2]
[404724386,1770492643701,-500.0,0.0002246,2]
[404724387,1770492643711,-506.90768866,0.0002246,2]
[404724388,1770492643720,-500.0,0.0002246,2]
[404724389,1770492643729,-500.0,0.0002246,2]
[404724390,1770492643739,-510.4331516,0.0002246,2]
[404724391,1770492643749,-500.0,0.0002246,2]
[404724392,1770492643758,-500.0,0.0002246,2]
[404724393,1770492643767,-160.92297488,0.0002246,2]
[404724394,1770492643777,-500.0,0.0002246,2]
[404724395,1770492643786,-150.0,0.0002246,2]
[404724396,1770492643795,-500.0,0.0002246,2]
[404724397,1770492643805,-500.0,0.0002246,2]
[404724398,1770492643814,-506.98515424,0.0002246,2]
[404724399,1770492643824,-509.2963147,0.0002246,2]
[404724400,1770492643834,-500.0,0.0002246,2]
[404724401,1770492643843,-500.0,0.0002246,2]
[404724402,1770492643852,-500.0,0.0002246,2]
[404724403,1770492643862,-500.0,0.0002246,2]
[404724404,1770492643871,-500.0,0.0002246,2]
[404724405,1770492643881,-500.0,0.0002246,2]
[404724406,1770492643891,-1652.2088565,0.00022496,2]
[404724407,1770492643900,-300.0,0.00022599,2]
[404724408,1770492643910,-219674.84057721,0.000226,2]
[404724409,1770492643919,-156.16432723,0.00022879,2]
[404724410,1770492643929,-637.54823264,0.00023,7]
[404724411,1770492643938,-160.0,0.00023,2]
[404724412,1770492643948,-300.0,0.00023007,2]
[404724413,1770492643957,-1004.2260666,0.00023008,2]
[404724414,1770492643966,-1000.0,0.00023008,2]
[404724415,1770492643974,-1000.0,0.00023008,2]
[404724416,1770492643983,-1000.0,0.00023008,2]
[404724417,1770492643991,-1000.0,0.00023008,2]
[404724418,1770492644000,-267.60703924,0.00023008,2]
[404724419,1770492644009,-1000.0,0.00023008,2]
[404724420,1770492644018,-1000.0,0.00023008,2]
[404724421,1770492644028,-1000.0,0.00023008,2]
[404724422,1770492644037,-1000.0,0.00023008,2]
[404724423,1770492644048,-956.19349362,0.00023008,2]
[404724424,1770492644058,-1000.0,0.00023008,2]
[404724425,1770492644067,-1000.0,0.00023008,2]
[404724426,1770492644084,-626.50935226,0.00023008,2]
[404724427,1770492644095,-490.41332566,0.00023008,2]
[404724428,1770492644104,-1000.0,0.00023008,2]
[404724429,1770492644114,-250.11398482,0.00023008,2]
[404724430,1770492644124,-1000.0,0.00023008,2]
[404724431,1770492644134,-408.8446401,0.00023008,2]
[404724432,1770492644144,-1000.0,0.00023008,2]
[404724433,1770492644154,-1000.0,0.00023008,2]
[404724434,1770492644163,-1000.0,0.00023008,2]
[404724435,1770492644173,-1000.0,0.00023008,2]
[404724436,1770492644183,-1000.0,0.00023008,2]
[404724437,1770492644192,-677.28221394,0.00023008,2]
[404724438,1770492644202,-190.47,0.00023241,2]
[404724439,1770492644211,-1512.32507296,0.0002328,2]
[404724440,1770492644220,-300.0,0.00023368,2]
[404724441,1770492644230,-5008.15573244,0.00023369,2]
[404724442,1770492644239,-5000.0,0.00023369,2]
[404724443,1770492644247,-5000.0,0.00023369,2]
[404724444,1770492644256,-5000.0,0.00023369,2]
[404724445,1770492644265,-5000.0,0.00023369,2]
[404724446,1770492644275,-300.0,0.00023555,2]
[404724447,1770492644284,-1500.0,0.00023556,2]
[404724448,1770492644293,-1500.0,0.00023556,2]
[404724449,1770492644303,-1500.0,0.00023556,2]
[404724450,1770492644312,-908.89576694,0.00023556,2]
[404724451,1770492644321,-1500.0,0.00023556,2]
[404724452,1770492644330,-1500.0,0.00023556,2]
[404724453,1770492644340,-1500.0,0.00023556,2]
[404724454,1770492644350,-1500.0,0.00023556,2]
[404724455,1770492644359,-1500.0,0.00023556,2]
[404724456,1770492644368,-1500.0,0.00023556,2]
[404724457,1770492644381,-1500.0,0.00023556,2]
[404724458,1770492644391,-1500.0,0.00023556,2]
[404724459,1770492644399,-1500.0,0.00023556,2]
[404724460,1770492644407,-1500.0,0.00023556,2]
[404724461,1770492644417,-1500.0,0.00023556,2]
[404724462,1770492644425,-1500.0,0.00023556,2]
[404724463,1770492644433,-1500.0,0.00023556,2]
[404724464,1770492644441,-408.0,0.0002371,2]
[404724465,1770492644449,-16293.07,0.00024,2]
[404724466,1770492644458,-300.0,0.00024103,2]
[404724467,1770492644467,-2000.0,0.00024104,2]
[404724468,1770492644476,-589.95947915,0.00024104,2]
[404724469,1770492644485,-2000.0,0.00024104,2]
[404724470,1770492644494,-2000.0,0.00024104,2]
[404724471,1770492644502,-2149.51215349,0.00024104,2]
[404724472,1770492644512,-2000.0,0.00024104,2]
[404724473,1770492644520,-1990.99013013,0.00024104,2]
[404724474,1770492644529,-2000.0,0.00024104,2]
[404724475,1770492644537,-2000.0,0.00024104,2]
[404724476,1770492644546,-692.37886657,0.00024104,2]
[404724477,1770492644555,-477.38277676,0.00024104,2]
[404724478,1770492644564,-2000.0,0.00024104,2]
[404724479,1770492644573,-1511.53035871,0.00024104,2]
[404724480,1770492644582,-2000.0,0.00024104,2]
[404724481,1770492644591,-2000.0,0.00024104,2]
[404724482,1770492644600,-1222.56300425,0.00024104,2]
[404724483,1770492644608,-156.16432723,0.00024309,2]
[404724484,1770492644617,-180.23086787,0.00024413,2]
[404724485,1770492644626,-3349.22423772,0.00024423,2]
[404724486,1770492644635,-300.0,0.00024429,2]
[404724487,1770492644688,-2210.92986901,0.00024652,2]
[404724488,1770492644697,-2500.0,0.00024652,2]
[404724489,1770492644705,-2500.0,0.00024652,2]
[404724490,1770492644714,-1512.32507296,0.00024778,2]
[404724491,1770492644723,-3000.0,0.000252,2]
[404724492,1770492644732,-2369.28825225,0.000252,2]
[404724493,1770492644741,-156.16432723,0.00025739,2]
[404724494,1770492644750,-3500.0,0.00025748,2]
[404724495,1770492644760,-204.49,0.00025763,2]
[404724496,1770492644769,-3558.43,0.000258,7]
[404724497,1770492644778,-1512.32507296,0.00026276,2]
[404724498,1770492644787,-1193.76418737,0.00026296,2]
[404724499,1770492644797,-4290.61608061,0.000263,2]
[404724500,1770492644806,-1652.2088565,0.00026744,2]
[404724501,1770492644815,-163.0,0.00026933,3]
[404724502,1770492644824,-164.48774038,0.00027,2]
[404724503,1770492644833,-156.16432723,0.00027169,2]
[404724504,1770492644842,-150.0,0.00027369,2]
[404724505,1770492644851,-395.21001335,0.0002737,2]
[404724506,1770492644861,-300.0,0.00027397,2]
[404724507,1770492644870,-1000.0,0.00027397,20]
[404724508,1770492644879,-158.19,0.000277,14]
[404724509,1770492644888,-1512.32507296,0.00027774,2]
[404724510,1770492644897,-160.0,0.00028,3]
[404724511,1770492644906,-160.0,0.00028,3]
[404724512,1770492644915,-16293.07,0.00028,2]
[404724513,1770492644925,-190.47,0.00028127,2]
[404724514,1770492644934,-163.0,0.00028153,3]
[404724515,1770492644944,-156.16432723,0.00028599,2]
[404724516,1770492644953,-3023.69,0.00028838,2]
[404724517,1770492644962,-408.0,0.00028955,2]
[404724518,1770492644971,-170.32,0.00029073,2]
[404724519,1770492644981,-1512.32507296,0.00029271,2]
[404724520,1770492644990,-165.75,0.00029629,2]
[404724521,1770492645001,-3558.43,0.000297,7]
[404724522,1770492645011,-237.38329208,0.0002999,2]
[404724523,1770492645020,-591.5075181,0.0003,7]
[404724524,1770492645029,-1818.83836505,0.0003,2]
[404724525,1770492645039,-163.14671548,0.0003,2]
[404724526,1770492645049,-156.16432723,0.00030029,2]
[404724527,1770492645058,-1100.63268506,0.0003013,2]
[404724528,1770492645068,-634.57864906,0.0003013,2]
[404724529,1770492645077,-201.87528113,0.0003013,2]
[404724530,1770492645086,-5401.06462395,0.0003013,2]
[404724531,1770492645096,-1512.32507296,0.00030769,2]
[404724532,1770492645105,-1652.2088565,0.00030991,2]
[404724533,1770492645114,-156.16432723,0.00031459,2]
[404724534,1770492645123,-197.47031313,0.000315,2]
[404724535,1770492645134,-150.0,0.000315,2]
[404724536,1770492645143,-2447.0,0.0003204,2]
[404724537,1770492645153,-1512.32507296,0.00032267,2]
[404724538,1770492645163,-894.72585091,0.000323,2]
[404724539,1770492645172,-16293.07,0.000323,2]
[404724540,1770492645181,-300.0,0.00032429,10]
[404724541,1770492645191,-917.837,0.0003243,2]
[404724542,1770492645200,-1206.0,0.0003243,2]
[404724543,1770492645209,-1341.461,0.0003243,2]
[404724544,1770492645219,-1411.0,0.0003243,2]
[404724545,1770492645228,-507.0,0.00032616,2]
[404724546,1770492645237,-4832.94194423,0.000328,2]
[404724547,1770492645247,-808.65,0.0003283,2]
[404724548,1770492645257,-156.16432723,0.00032889,2]
[404724549,1770492645266,-252.34,0.0003289,2]
[404724550,1770492645275,-808.65,0.00032891,2]
[404724551,1770492645284,-1450.96,0.000329,2]
[404724552,1770492645293,-808.65,0.00032951,2]
[404724553,1770492645304,-1013.7761403,0.00033,5]
[404724554,1770492645313,-153.63540437,0.00033,2]
[404724555,1770492645323,-808.65,0.00033012,2]
[404724556,1770492645332,-808.65,0.00033072,2]
[404724557,1770492645341,-808.65,0.00033133,2]
[404724558,1770492645351,-808.65,0.00033193,2]
[404724559,1770492645360,-177.51,0.000332,14]
[404724560,1770492645369,-171.11,0.000332,14]
[404724561,1770492645385,-808.65,0.00033254,2]
[404724562,1770492645394,-9039.0,0.000333,2]
[404724563,1770492645403,-158.72,0.00033314,2]
[404724564,1770492645414,-808.65,0.00033314,2]
[404724565,1770492645423,-5000.0,0.00033369,2]
[404724566,1770492645431,-5000.0,0.00033369,2]
[404724567,1770492645441,-808.65,0.00033375,2]
[404724568,1770492645450,-808.65,0.00033435,2]
[404724569,1770492645460,-808.65,0.00033496,2]
[404724570,1770492645470,-3558.43,0.000335,14]
[404724571,1770492645479,-1212.11725022,0.000335,2]
[404724572,1770492645488,-808.65,0.00033556,2]
[404724574,1770492645497,-808.65,0.00033617,2]
[404724576,1770492645506,-158.71811997,0.00033617,2]
[404724577,1770492645515,-808.65,0.00033677,2]
[404724578,1770492645524,-808.65,0.00033737,2]
[404724579,1770492645533,-507.0,0.00033745,3]
[404724580,1770492645543,-1512.32507296,0.00033764,2]
[404724581,1770492645553,-808.65,0.00033798,2]
[404724582,1770492645562,-808.65,0.00033858,2]
[404724583,1770492645571,-150.0,0.00033873,5]
[404724584,1770492645580,-150.0,0.00033873,5]
[404724585,1770492645590,-808.65,0.00033919,2]
[404724586,1770492645599,-808.65,0.00033979,2]
[404724587,1770492645608,-1450.96,0.000342,2]
[404724588,1770492645618,-156.16432726,0.00034319,2]
[404724589,1770492645627,-5530.0,0.000344,3]
[404724590,1770492645636,-250.0,0.00034421,5]
[404724591,1770492645645,-250.0,0.00034421,5]
[404724592,1770492645655,-1731.94437755,0.0003449,2]
[404724593,1770492645664,-226.67,0.00034577,2]
[404724594,1770492645673,-507.0,0.00034873,4]
[404724595,1770492645682,-150.0,0.00034904,2]
[404724596,1770492645691,-226.67,0.00034954,2]
[404724597,1770492645701,-350.0,0.00034968,5]
[404724598,1770492645710,-350.0,0.00034968,5]
[404724599,1770492645719,-500.0,0.00035,2]
[404724600,1770492645729,-1918.23562081,0.00035,2]
[404724601,1770492645739,-800.14801699,0.00035,2]
[404724602,1770492645748,-2447.0,0.0003504,2]
[404724603,1770492645757,-1512.32507296,0.00035262,2]
[404724604,1770492645766,-226.66686723,0.00035331,2]
[404724605,1770492645775,-170.32,0.00035339,2]
[404724606,1770492645784,-917.0,0.0003543,2]
[404724607,1770492645793,-1206.0,0.0003543,2]
[404724609,1770492645802,-1335.0,0.0003543,2]
[404724611,1770492645811,-1411.0,0.0003543,2]
[404724612,1770492645820,-654.921522,0.0003543,7]
[404724613,1770492645830,-654.921522,0.0003543,7]
[404724614,1770492645840,-654.921522,0.0003543,7]
[404724615,1770492645849,-654.921522,0.0003543,7]
[404724616,1770492645859,-5530.0,0.000355,5]
[404724617,1770492645868,-450.0,0.00035516,5]
[404724618,1770492645879,-494.49066866,0.00035516,5]
[404724619,1770492645888,-150.0,0.00035562,7]
[404724620,1770492645897,-150.0,0.00035562,7]
[404724621,1770492645907,-150.0,0.00035562,7]
[404724622,1770492645915,-500.0,0.00035589,5]
[404724623,1770492645924,-150.0,0.00035607,7]
[404724624,1770492645934,-454.38660406,0.00035616,7]
[404724625,1770492645943,-150.0,0.00035653,7]
[404724626,1770492645952,-150.0,0.00035671,4]
[404724627,1770492645961,-150.0,0.00035671,4]
[404724628,1770492645971,-150.0,0.00035671,4]
[404724629,1770492645981,-300.0,0.00035673,5]
[404724630,1770492645992,-150.0,0.00035673,5]
[404724631,1770492646002,-150.0,0.00035683,4]
[404724632,1770492646011,-150.0,0.00035696,4]
[404724633,1770492646020,-150.0,0.00035699,7]
[404724634,1770492646031,-3558.43,0.000357,14]
[404724635,1770492646040,-150.0,0.00035708,4]
[404724636,1770492646050,-150.0,0.0003572,4]
[404724637,1770492646059,-150.0,0.00035732,5]
[404724638,1770492646068,-152.0,0.0003574,4]
[404724639,1770492646078,-300.0,0.0003574,4]
[404724640,1770492646087,-300.0,0.0003574,4]
[404724641,1770492646097,-150.0,0.00035743,4]
[404724642,1770492646106,-150.0,0.00035744,5]
[404724643,1770492646116,-150.0,0.00035744,7]
[404724644,1770492646125,-150.0,0.00035746,4]
[404724645,1770492646134,-150.0,0.00035749,4]
[404724646,1770492646144,-150.0,0.00035752,4]
[404724647,1770492646155,-150.0,0.00035755,4]
[404724648,1770492646164,-150.0,0.00035756,5]
[404724649,1770492646174,-150.0,0.00035759,4]
[404724650,1770492646186,-150.0,0.00035762,4]
[404724651,1770492646195,-150.0,0.00035765,4]
[404724652,1770492646205,-150.0,0.00035768,4]
[404724653,1770492646214,-150.0,0.00035769,5]
[404724654,1770492646224,-150.0,0.00035771,4]
[404724655,1770492646235,-150.0,0.00035774,4]
[404724656,1770492646246,-150.0,0.00035777,4]
[404724657,1770492646255,-150.0,0.0003578,4]
[404724658,1770492646264,-150.0,0.00035781,5]
[404724659,1770492646273,-150.0,0.0003579,7]
[404724660,1770492646281,-150.0,0.00035793,5]
[404724661,1770492646289,-150.0,0.00035795,4]
[404724662,1770492646297,-150.0,0.00035795,4]
[404724663,1770492646306,-151.0,0.00035795,31]
[404724664,1770492646315,-151.0,0.00035795,31]
[404724665,1770492646323,-221.282419,0.00035795,31]
[404724666,1770492646331,-151.0,0.00035795,31]
[404724667,1770492646339,-221.282419,0.00035795,31]
[404724668,1770492646348,-151.0,0.00035795,31]
[404724669,1770492646356,-221.282419,0.00035795,31]
[404724670,1770492646364,-617.001416,0.00035795,31]
[404724671,1770492646374,-221.282419,0.00035795,31]
[404724672,1770492646383,-617.001416,0.00035795,31]
[404724673,1770492646391,-617.001416,0.00035795,31]
[404724674,1770492646400,-617.001416,0.00035795,31]
[404724675,1770492646409,-151.0,0.00035795,31]
[404724676,1770492646418,-151.0,0.00035795,31]
[404724677,1770492646426,-151.0,0.00035795,31]
[404724678,1770492646434,-150.0,0.00035805,5]
[404724679,1770492646443,-150.0,0.00035817,5]
[404724680,1770492646453,-150.0,0.00035821,4]
[404724681,1770492646463,-150.0,0.00035824,4]
[404724682,1770492646472,-150.0,0.00035827,4]
[404724683,1770492646481,-150.0,0.0003583,5]
[404724684,1770492646491,-150.0,0.00035831,4]
[404724685,1770492646500,-150.0,0.00035834,4]
[404724686,1770492646509,-150.0,0.00035836,7]
[404724687,1770492646518,-150.0,0.00035836,6]
[404724688,1770492646527,-150.0,0.00035836,6]
[404724689,1770492646537,-150.0,0.00035837,4]
[404724690,1770492646546,-150.0,0.0003584,4]
[404724691,1770492646556,-150.0,0.00035842,6]
[404724692,1770492646565,-150.0,0.00035843,4]
[404724693,1770492646576,-150.0,0.00035846,4]
[404724694,1770492646587,-288.0,0.00035849,4]
[404724695,1770492646597,-150.0,0.00035854,6]
[404724696,1770492646608,-1000.0,0.00035863,5]
[404724697,1770492646618,-150.0,0.00035866,6]
[404724698,1770492646628,-150.0,0.00035878,6]
[404724699,1770492646639,-150.0,0.00035881,8]
[404724700,1770492646648,-199.9806,0.00035888,30]
[404724701,1770492646658,-150.0,0.0003589,6]
[404724702,1770492646667,-150.0,0.00035903,6]
[404724703,1770492646676,-150.0,0.00035915,6]
[404724704,1770492646686,-150.0,0.00035927,6]
[404724705,1770492646696,-150.0,0.00035927,8]
[404724706,1770492646707,-150.0,0.00035939,6]
[404724707,1770492646718,-150.0,0.00035951,7]
[404724708,1770492646729,-150.0,0.00035963,7]
[404724709,1770492646739,-300.0,0.0003597,2]
[404724710,1770492646749,-400.0,0.0003597,2]
[404724711,1770492646760,-150.0,0.00035973,9]
[404724712,1770492646771,-150.0,0.00035976,7]
[404724713,1770492646781,-150.0,0.00035988,7]
[404724714,1770492646791,-257.0,0.00036,7]
[404724715,1770492646801,-4203.30523098,0.00036,2]
[404724716,1770492646811,-507.0,0.00036001,6]
[404724717,1770492646820,-150.0,0.00036018,9]
[404724718,1770492646830,-150.0,0.00036064,10]
[404724719,1770492646839,-550.0,0.00036064,5]
[404724720,1770492646849,-199.9806,0.00036088,30]
[404724721,1770492646857,-150.0,0.0003611,10]
[404724722,1770492646866,-1500.0,0.00036137,5]
[404724723,1770492646875,-150.0,0.00036155,11]
[404724724,1770492646885,-150.0,0.00036201,11]
[404724725,1770492646895,-708.80161609,0.00036221,5]
[404724726,1770492646904,-250.0,0.00036221,5]
[404724727,1770492646913,-211.0,0.00036247,12]
[404724728,1770492646922,-199.9806,0.00036288,30]
[404724729,1770492646931,-500.00000009,0.00036411,5]
[404724730,1770492646941,-199.9806,0.00036488,30]
[404724731,1770492646950,-650.0,0.00036612,5]
[404724732,1770492646959,-150.0,0.00036649,2]
[404724733,1770492646969,-199.9806,0.00036688,30]
[404724734,1770492646978,-1512.32507296,0.0003676,2]
[404724735,1770492646987,-350.0,0.00036768,5]
[404724736,1770492646996,-1450.96,0.000368,2]
[404724737,1770492647006,-199.9806,0.00036888,30]
[404724738,1770492647015,-666.602,0.00036888,7]
[404724739,1770492647025,-1560.49289465,0.00037,30]
[404724740,1770492647035,-199.9806,0.00037088,30]
[404724741,1770492647044,-507.0,0.00037129,7]
[404724742,1770492647054,-307.41997322,0.0003716,5]
[404724743,1770492647063,-185.51510198,0.000372,120]
[404724744,1770492647072,-185.51510198,0.000372,120]
[404724745,1770492647082,-185.51510198,0.000372,120]
[404724746,1770492647091,-165.0,0.000372,30]
[404724747,1770492647101,-199.9806,0.00037288,30]
[404724748,1770492647110,-450.71004244,0.00037316,5]
[404724749,1770492647119,-199.9806,0.00037488,30]
[404724750,1770492647129,-16293.07,0.000375,2]
[404724751,1770492647138,-199.9806,0.00037688,30]
[404724752,1770492647148,-199.9806,0.00037888,30]
[404724753,1770492647158,-576.77491399,0.000379,120]
[404724754,1770492647168,-362.57654928,0.00037911,2]
[404724755,1770492647178,-233.73677134,0.00037999,120]
[404724756,1770492647187,-522.6,0.00038,30]
[404724757,1770492647199,-2447.0,0.0003804,2]
[404724758,1770492647209,-342.00264161,0.00038082,2]
[404724759,1770492647219,-199.9806,0.00038088,30]
[404724760,1770492647229,-2960.99,0.00038225,51]
[404724761,1770492647239,-234.598,0.00038225,51]
[404724762,1770492647249,-507.0,0.00038257,8]
[404724763,1770492647259,-1512.32507296,0.00038258,2]
[404724764,1770492647270,-199.9806,0.00038288,30]
[404724765,1770492647279,-276.59215114,0.00038356,120]
[404724766,1770492647289,-295.63620256,0.00038356,60]
[404724767,1770492647300,-500.0,0.00038356,60]
[404724768,1770492647310,-500.0,0.00038411,60]
[404724769,1770492647320,-917.0,0.0003843,2]
[404724770,1770492647329,-1206.0,0.0003843,2]
[404724771,1770492647339,-1335.0,0.0003843,2]
[404724772,1770492647351,-1411.0,0.0003843,2]
[404724773,1770492647360,-500.0,0.00038466,60]
[404724774,1770492647370,-150.0,0.00038482,2]
[404724775,1770492647386,-199.9806,0.00038488,30]
[404724776,1770492647396,-3558.43,0.000385,14]
[404724777,1770492647406,-500.0,0.0003852,60]
[404724778,1770492647416,-500.0,0.00038575,60]
[404724779,1770492647426,-500.0,0.0003863,60]
[404724780,1770492647436,-500.0,0.00038685,60]
[404724781,1770492647446,-199.9806,0.00038688,30]
[404724782,1770492647457,-500.0,0.000387,120]
[404724783,1770492647467,-500.0,0.000387,120]
[404724784,1770492647477,-500.0,0.000387,120]
[404724785,1770492647487,-500.0,0.000387,120]
[404724786,1770492647496,-500.0,0.000387,120]
[404724787,1770492647506,-522.6,0.0003872,30]
[404724788,1770492647516,-500.0,0.0003874,60]
[404724789,1770492647526,-500.0,0.00038794,60]
[404724790,1770492647535,-3702.17787875,0.00038834,2]
[404724791,1770492647546,-305.49465499,0.00038849,60]
[404724792,1770492647556,-205.49965253,0.0003899,120]
[404724793,1770492647566,-11069.27743827,0.00039,120]
[404724794,1770492647575,-151.0,0.00039041,120]
[404724795,1770492647585,-151.0,0.00039041,120]
[404724796,1770492647595,-151.0,0.00039041,120]
[404724797,1770492647605,-151.0,0.00039041,120]
[404724798,1770492647614,-211.50033,0.00039041,120]
[404724799,1770492647624,-199.9806,0.00039088,30]
[404724800,1770492647634,-12205.28997785,0.000391,120]
[404724801,1770492647643,-199.9806,0.00039288,30]
[404724802,1770492647652,-150.0,0.00039289,2]
[404724803,1770492647662,-152.24813467,0.00039289,2]
[404724804,1770492647672,-150.0,0.00039289,2]
[404724805,1770492647682,-150.0,0.00039289,2]
[404724806,1770492647693,-150.0,0.00039289,2]
[404724807,1770492647703,-150.0,0.00039289,2]
[404724808,1770492647712,-500.0,0.00039289,2]
[404724809,1770492647722,-150.0,0.00039289,2]
[404724810,1770492647731,-16293.07,0.000393,2]
[404724811,1770492647740,-151.76386287,0.00039344,2]
[404724812,1770492647750,-150.0,0.00039344,2]
[404724813,1770492647759,-150.43934917,0.00039344,2]
[404724814,1770492647769,-613.72923299,0.00039344,2]
[404724815,1770492647778,-208.82733922,0.00039344,2]
[404724816,1770492647787,-507.0,0.00039386,10]
[404724817,1770492647798,-1450.96,0.000394,30]
[404724818,1770492647807,-16293.07,0.000394,14]
[404724819,1770492647817,-522.6,0.0003944,30]
[404724820,1770492647828,-199.9806,0.00039488,30]
[404724821,1770492647837,-199.9806,0.00039688,30]
[404724822,1770492647846,-157.639954,0.00039726,120]
[404724823,1770492647855,-252.212261,0.00039726,120]
[404724824,1770492647863,-151.0,0.00039726,120]
[404724825,1770492647871,-270.38692,0.00039726,120]
[404724826,1770492647880,-270.38692,0.00039726,120]
[404724827,1770492647890,-270.38692,0.00039726,120]
[404724828,1770492647899,-261.906062,0.00039726,120]
[404724829,1770492647908,-270.38692,0.00039726,120]
[404724830,1770492647916,-261.906062,0.00039726,120]
[404724831,1770492647926,-270.38692,0.00039726,120]
[404724832,1770492647934,-160.7704,0.00039726,120]
[404724833,1770492647942,-151.0,0.00039726,120]
[404724834,1770492647951,-270.38692,0.00039726,120]
[404724835,1770492647959,-261.906062,0.00039726,120]
[404724836,1770492647968,-151.0,0.00039726,120]
[404724837,1770492647976,-261.906062,0.00039726,120]
[404724838,1770492647985,-270.38692,0.00039726,120]
[404724839,1770492647994,-270.38692,0.00039726,120]
[404724840,1770492648004,-261.906062,0.00039726,120]
[404724841,1770492648014,-261.906062,0.00039726,120]
[404724842,1770492648024,-261.906062,0.00039726,120]
[404724843,1770492648034,-261.906062,0.00039726,120]